bitfinex/quotes_BTCUSD_20241205
["timestamp","ask_amount","ask_price","bid_price","bid_amount"]
[1733409326915,0.48721805,103220.0,103190.0,0.38780671]
[1733409327373,0.48721805,103220.0,103190.0,0.19399171]
[1733409327374,0.68099305,103220.0,103190.0,0.19399171]
[1733409327607,0.48721805,103220.0,103190.0,0.19399171]
[1733409327828,0.48721805,103220.0,103190.0,0.19571891]
[1733409327829,0.68099305,103220.0,103190.0,0.19571891]
[1733409328264,0.53687526,103220.0,103190.0,0.19571891]
[1733409328476,0.53687526,103220.0,103190.0,0.00190291]
[1733409328713,0.48721805,103220.0,103190.0,0.19571791]
[1733409329140,0.29344605,103220.0,103190.0,0.38952291]
[1733409329380,0.15,103230.0,103210.0,0.44389675]
[1733409329609,0.15,103230.0,103210.0,0.193764]
[1733409329834,0.09967605,103220.0,103190.0,0.19571191]
[1733409330101,0.29344805,103220.0,103190.0,0.00190291]
[1733409330314,0.387571,103210.0,103190.0,0.00190291]
[1733409330588,0.09967605,103210.0,103190.0,0.44583766]
[1733409330804,0.193771,103220.0,103190.0,0.00190291]
[1733409331021,0.48726405,103210.0,103190.0,0.00190291]
[1733409331230,0.48726005,103210.0,103190.0,0.00190291]
[1733409331918,0.29346705,103210.0,103190.0,0.00190291]
[1733409332144,0.48725905,103210.0,103190.0,0.00190291]
[1733409332366,0.29346705,103210.0,103190.0,0.00190291]
[1733409332602,0.29347405,103200.0,103190.0,0.00190291]
[1733409333279,0.09967605,103200.0,103190.0,0.00190291]
[1733409333493,1.1465,103220.0,103190.0,0.19570591]
[1733409333720,0.29346605,103210.0,103190.0,0.00190291]
[1733409333968,0.48725905,103210.0,103190.0,0.00190291]
[1733409334184,0.193798,103200.0,103190.0,0.00190291]
[1733409334422,0.09967605,103200.0,103190.0,0.00190291]
[1733409334646,0.29347405,103200.0,103190.0,0.00190291]
[1733409335330,0.39347405,103200.0,103190.0,0.00190291]
[1733409335803,0.15,103230.0,103210.0,0.1]
[1733409336041,0.15,103230.0,103220.0,0.19376]
[1733409336264,0.15,103230.0,103220.0,0.74452261]
[1733409336528,0.15,103230.0,103220.0,0.7435538]
[1733409336763,0.15,103230.0,103220.0,0.8217538]
[1733409336977,0.15,103230.0,103220.0,0.62133605]
[1733409337223,0.15,103230.0,103220.0,0.1]
[1733409337438,0.15,103230.0,103210.0,0.393764]
[1733409337662,0.15,103230.0,103210.0,0.49344005]
[1733409337922,0.15,103230.0,103210.0,0.19967605]
[1733409338171,0.15,103230.0,103220.0,0.25011775]
[1733409339045,0.15,103230.0,103200.0,0.76760575]
[1733409339293,0.343737,103240.0,103210.0,0.25011775]
[1733409339505,0.68890611,103240.0,103210.0,0.25011775]
[1733409339727,0.63714605,103240.0,103210.0,0.25011775]
[1733409339942,0.15,103240.0,103220.0,0.25011775]
[1733409340156,0.15,103240.0,103230.0,0.25011775]
[1733409340432,0.1738636,103250.0,103230.0,0.25011775]
[1733409340640,0.1738636,103250.0,103240.0,0.25011775]
[1733409340883,0.1738636,103250.0,103240.0,0.44384075]
[1733409341117,0.1738636,103250.0,103240.0,0.6435168]
[1733409343980,0.1738636,103250.0,103240.0,0.7435168]
[1733409344208,0.1738636,103250.0,103240.0,0.81745357]
[1733409344635,0.1738636,103250.0,103240.0,0.65542631]
[1733409344839,0.1738636,103250.0,103240.0,0.81745357]
[1733409345055,0.1738636,103250.0,103240.0,0.84045357]
[1733409347100,0.1738636,103250.0,103240.0,0.94045357]
[1733409347314,0.00030932,103310.0,103290.0,0.193628]
[1733409347529,0.00089553,103310.0,103290.0,0.35564626]
[1733409347747,0.00089553,103310.0,103290.0,0.16202726]
[1733409347967,0.10026226,103310.0,103280.0,0.16202726]
[1733409348200,0.10026226,103310.0,103270.0,0.198]
[1733409348201,0.193619,103300.0,103270.0,0.023]
[1733409348415,0.19419621,103310.0,103280.0,0.16202726]
[1733409348633,0.19419621,103310.0,103280.0,0.35567226]
[1733409348634,0.29387226,103310.0,103280.0,0.35567226]
[1733409348849,0.48747326,103310.0,103280.0,0.16202726]
[1733409349081,0.48747126,103310.0,103280.0,0.16202726]
[1733409349328,0.48691105,103300.0,103270.0,0.28502726]
[1733409349540,0.193633,103290.0,103270.0,0.18502726]
[1733409349782,0.193611,103300.0,103270.0,0.023]
[1733409349998,0.29328805,103300.0,103280.0,0.16202726]
[1733409350228,0.19419521,103310.0,103270.0,0.410311]
[1733409350462,0.29328805,103300.0,103270.0,0.023]
[1733409350939,0.48691105,103300.0,103270.0,0.216656]
[1733409351151,0.387258,103290.0,103270.0,0.023]
[1733409351574,0.29328805,103300.0,103270.0,0.023]
[1733409351786,0.09967605,103300.0,103270.0,0.023]
[1733409352006,0.193631,103290.0,103270.0,0.023]
[1733409352235,0.11056618,103300.0,103270.0,0.023]
[1733409352457,0.193648,103280.0,103270.0,0.023]
[1733409352675,0.29332405,103280.0,103270.0,0.023]
[1733409353349,0.1292,103290.0,103270.0,0.023]
[1733409353353,0.1292,103290.0,103240.0,0.023]
[1733409353354,0.38840331,103280.0,103240.0,0.023]
[1733409353585,0.193704,103250.0,103240.0,0.023]
[1733409353826,0.29338005,103250.0,103240.0,0.023]
[1733409354682,0.193694,103260.0,103240.0,0.023]
[1733409354889,0.29336205,103260.0,103240.0,0.023]
[1733409355109,0.00017565,103260.0,103240.0,0.216723]
[1733409355340,0.00017565,103260.0,103240.0,0.023]
[1733409355564,0.09967605,103250.0,103240.0,0.023]
[1733409355809,0.29338005,103250.0,103240.0,0.023]
[1733409356044,0.193704,103250.0,103240.0,0.023]
[1733409356291,0.38755565,103260.0,103240.0,0.023]
[1733409356531,0.6809327,103260.0,103240.0,0.023]
[1733409356740,0.2935377,103260.0,103240.0,0.023]
[1733409356953,0.4872337,103260.0,103240.0,0.023]
[1733409357184,0.6809347,103260.0,103240.0,0.023]
[1733409357444,0.4872337,103260.0,103240.0,0.023]
[1733409357646,0.6809337,103260.0,103240.0,0.023]
[1733409357869,0.6809327,103260.0,103240.0,0.023]
[1733409358094,0.4872337,103260.0,103240.0,0.023]
[1733409358518,0.4872317,103260.0,103240.0,0.023]
[1733409358752,0.29338005,103250.0,103240.0,0.023]
[1733409360145,0.45540731,103250.0,103240.0,0.023]
[1733409360375,0.16202726,103240.0,103190.0,0.1785272]
[1733409360591,0.193779,103220.0,103190.0,0.1017272]
[1733409360802,0.48722705,103220.0,103190.0,0.1017272]
[1733409361046,0.68100405,103220.0,103190.0,0.2955412]
[1733409361305,0.68099905,103220.0,103190.0,0.2955412]
[1733409361496,0.19378,103210.0,103190.0,0.0017272]
[1733409361728,0.193781,103210.0,103190.0,0.0017272]
[1733409361959,0.387574,103210.0,103190.0,0.00190291]
[1733409362398,0.193798,103200.0,103190.0,0.00190291]
[1733409362642,0.68104405,103210.0,103190.0,0.00190291]
[1733409362865,0.193798,103200.0,103190.0,0.00190291]
[1733409363542,0.29345705,103210.0,103190.0,0.00190291]
[1733409363757,0.463843,103220.0,103190.0,0.00190291]
[1733409364023,0.68099205,103220.0,103190.0,0.00190291]
[1733409364233,0.29344605,103220.0,103190.0,0.19571091]
[1733409364674,0.29344605,103220.0,103180.0,0.52044983]
[1733409364907,0.00011338,103220.0,103190.0,0.58928122]
[1733409365128,0.00011338,103220.0,103200.0,0.42038683]
[1733409365348,0.00011338,103220.0,103200.0,0.03280083]
[1733409365591,0.193801,103200.0,103170.0,0.30532738]
[1733409365800,0.48726205,103210.0,103170.0,0.82550326]
[1733409366054,0.31345505,103210.0,103180.0,0.22662583]
[1733409366263,0.31345505,103210.0,103180.0,0.03280083]
[1733409366716,0.11967605,103210.0,103180.0,0.42045183]
[1733409366935,0.11967605,103210.0,103190.0,0.193815]
[1733409366936,0.02,103210.0,103190.0,0.193815]
[1733409367168,0.02,103210.0,103180.0,0.62012688]
[1733409367430,0.02,103210.0,103190.0,0.193814]
[1733409367668,0.02,103210.0,103180.0,0.62012688]
[1733409367924,0.25454424,103210.0,103180.0,0.62012688]
[1733409368404,0.25454424,103210.0,103160.0,0.12431555]
[1733409368405,0.16044129,103210.0,103160.0,0.12431555]
[1733409368650,0.193827,103190.0,103160.0,0.03280083]
[1733409368877,0.53288708,103190.0,103150.0,0.487758]
[1733409369089,0.14522908,103190.0,103160.0,0.42052683]
[1733409369331,0.71096524,103210.0,103180.0,0.193835]
[1733409369557,0.69417605,103210.0,103190.0,0.193802]
[1733409369799,0.5945,103210.0,103190.0,0.61421583]
[1733409370040,0.5945,103210.0,103190.0,0.42040883]
[1733409370968,0.02,103210.0,103200.0,0.193798]
[1733409371698,0.02,103210.0,103200.0,0.38862609]
[1733409371923,0.02,103210.0,103200.0,0.22659883]
[1733409372374,0.02,103210.0,103200.0,0.193798]
[1733409372600,0.02,103210.0,103200.0,0.22659883]
[1733409373067,0.02,103210.0,103200.0,0.193798]
[1733409373291,0.02,103210.0,103200.0,0.58830214]
[1733409373514,0.02,103210.0,103200.0,0.66360214]
[1733409376146,0.02,103210.0,103200.0,0.50157488]
[1733409376401,0.02,103210.0,103200.0,0.0008675]
[1733409377312,0.16044129,103210.0,103200.0,0.0008675]
[1733409377537,0.31345505,103210.0,103200.0,0.0008675]
[1733409377765,0.02,103210.0,103200.0,0.0008675]
[1733409377990,0.02,103210.0,103200.0,0.59013852]
[1733409378241,0.02,103210.0,103200.0,0.42714238]
[1733409378462,0.02,103210.0,103200.0,0.1946655]
[1733409379408,0.02,103210.0,103200.0,0.2946655]
[1733409380099,0.02,103210.0,103200.0,0.0008675]
[1733409380330,0.02,103210.0,103200.0,0.1946655]
[1733409380554,0.213779,103210.0,103200.0,0.0008675]
[1733409381905,0.0478325,103200.0,103180.0,0.71427583]
[1733409382127,0.0478325,103200.0,103180.0,0.81394988]
[1733409382356,0.0478325,103200.0,103180.0,0.62012388]
[1733409382571,0.13669309,103200.0,103170.0,0.35588126]
[1733409382840,0.08886059,103180.0,103150.0,0.16202726]
[1733409383065,0.28274559,103160.0,103140.0,0.0017294]
[1733409383287,0.08886059,103160.0,103140.0,0.0017294]
[1733409383551,0.08886059,103160.0,103140.0,0.3895414]
[1733409383786,0.08886059,103160.0,103140.0,0.35765866]
[1733409384001,0.08886059,103160.0,103140.0,0.1956314]
[1733409384256,0.08886059,103160.0,103140.0,0.19621783]
[1733409384483,0.28273359,103160.0,103140.0,0.00231583]
[1733409384707,0.47662159,103160.0,103140.0,0.00231583]
[1733409385144,0.28273359,103160.0,103140.0,0.00231583]
[1733409385395,0.28275259,103150.0,103140.0,0.00231583]
[1733409385631,0.387761,103160.0,103140.0,0.00231583]
[1733409385860,0.387761,103160.0,103140.0,0.39011483]
[1733409385861,0.08886059,103160.0,103140.0,0.39011483]
[1733409386069,0.08886059,103160.0,103140.0,0.19621383]
[1733409386284,0.28273359,103160.0,103140.0,0.00231583]
[1733409386494,0.08886059,103150.0,103140.0,0.00231583]
[1733409386984,0.28275259,103150.0,103140.0,0.00231583]
[1733409387231,0.08886059,103150.0,103140.0,0.00231583]
[1733409387462,0.28275259,103150.0,103140.0,0.00231583]
[1733409388159,0.08886059,103150.0,103140.0,0.00231583]
[1733409388392,0.28275259,103150.0,103140.0,0.00231583]
[1733409388622,0.08886059,103150.0,103140.0,0.00231583]
[1733409389352,0.64923069,103150.0,103120.0,0.15]
[1733409389580,0.35595626,103130.0,103120.0,0.15]
[1733409389819,0.29360505,103130.0,103120.0,0.15]
[1733409390292,0.387837,103140.0,103120.0,0.14803833]
[1733409390560,0.387837,103140.0,103110.0,0.0017304]
[1733409390561,0.02186058,103120.0,103110.0,0.0017304]
[1733409390786,0.45565131,103120.0,103110.0,0.0017304]
[1733409391667,0.53135131,103120.0,103110.0,0.0017304]
[1733409392155,0.69337857,103120.0,103110.0,0.0017304]
[1733409392405,0.89337857,103120.0,103110.0,0.0017304]
[1733409392627,0.35599426,103110.0,103100.0,0.0008649]
[1733409392872,1.50737031,103110.0,103100.0,0.0008649]
[1733409393319,5.19273863,103110.0,103100.0,0.0008649]
[1733409393537,0.45601326,103100.0,103090.0,0.0008653]
[1733409393771,0.61771657,103100.0,103090.0,0.0008653]
[1733409393995,0.84113579,103100.0,103090.0,0.00104088]
[1733409394211,0.76808929,103100.0,103090.0,0.00104088]
[1733409394448,0.64501302,103090.0,103080.0,0.0017304]
[1733409394674,0.02186058,103050.0,103020.0,0.194137]
[1733409394887,0.02186058,103050.0,103040.0,0.194099]
[1733409395106,0.02186058,103050.0,103030.0,0.38879301]
[1733409395324,0.02186058,103060.0,103050.0,0.19408]
[1733409395788,0.02186058,103070.0,103060.0,0.194061]
[1733409396233,0.02186058,103070.0,103040.0,0.388182]
[1733409396465,0.02186058,103060.0,103040.0,0.09967605]
[1733409396704,0.21592258,103060.0,103030.0,0.00058701]
[1733409396919,0.02186058,103060.0,103030.0,0.29535043]
[1733409397180,0.02186058,103060.0,103030.0,0.48946743]
[1733409397401,0.21592458,103060.0,103030.0,0.10026306]
[1733409397621,0.02186058,103040.0,103030.0,0.00058701]
[1733409399194,0.38818099,103050.0,103030.0,0.00058701]
[1733409399411,0.194099,103040.0,103030.0,0.00058701]
[1733409399853,0.48786004,103050.0,103030.0,0.00058701]
[1733409400083,0.73886806,103050.0,103030.0,0.00058701]
[1733409400321,0.194099,103040.0,103030.0,0.00058701]
[1733409400576,0.29377505,103040.0,103030.0,0.00058701]
[1733409401052,0.29377505,103040.0,103030.0,0.00145501]
[1733409402022,0.41897505,103040.0,103030.0,0.00145501]
[1733409402521,0.51689427,103040.0,103030.0,0.00145501]
[1733409402748,0.41897505,103040.0,103030.0,0.00145501]
[1733409403431,4.39462159,103060.0,103030.0,0.00145501]
[1733409403432,0.516636,103060.0,103030.0,0.19557201]
[1733409403661,0.194056,103070.0,103030.0,0.74133361]
[1733409403913,0.194076,103060.0,103030.0,0.29620859]
[1733409404145,0.582227,103060.0,103030.0,0.29523806]
[1733409404383,0.194099,103040.0,103030.0,0.00145501]
[1733409405123,0.48785805,103050.0,103030.0,0.00145501]
[1733409405366,0.194075,103060.0,103030.0,0.35213908]
[1733409405607,0.194075,103060.0,103030.0,0.10113106]
[1733409405843,0.388183,103050.0,103030.0,0.00145501]
[1733409406075,0.194099,103040.0,103030.0,0.00145501]
[1733409407241,0.48785905,103050.0,103030.0,0.00145501]
[1733409407755,0.388148,103060.0,103030.0,0.19557101]
[1733409407992,0.194057,103070.0,103040.0,0.194099]
[1733409408223,0.48778505,103070.0,103040.0,0.194099]
[1733409408459,0.48778105,103070.0,103030.0,0.74035008]
[1733409408683,0.48778105,103070.0,103040.0,0.194098]
[1733409408915,0.29372805,103070.0,103040.0,0.64015547]
[1733409409147,0.29372805,103070.0,103040.0,0.64015047]
[1733409409394,0.29372805,103070.0,103040.0,0.194097]
[1733409409631,0.29372805,103070.0,103040.0,0.58324239]
[1733409409877,0.194062,103060.0,103030.0,0.29524006]
[1733409410123,0.194062,103060.0,103030.0,0.48934206]
[1733409410370,0.194062,103060.0,103040.0,0.194098]
[1733409410601,0.194062,103060.0,103030.0,0.68344406]
[1733409410844,0.194062,103060.0,103030.0,0.29523306]
[1733409411106,0.388137,103060.0,103030.0,0.29523306]
[1733409411354,0.51656,103080.0,103050.0,0.44507702]
[1733409411563,0.194051,103070.0,103040.0,0.29376605]
[1733409411788,0.58216,103070.0,103040.0,0.38818]
[1733409412020,0.388105,103070.0,103040.0,0.58227]
[1733409412233,0.194051,103070.0,103040.0,0.38818]
[1733409412468,0.194051,103070.0,103040.0,0.388179]
[1733409412746,0.388105,103070.0,103040.0,0.388179]
[1733409412967,0.194065,103060.0,103030.0,0.27186101]
[1733409413211,0.388137,103060.0,103040.0,0.194098]
[1733409413442,0.29374105,103060.0,103030.0,0.38966401]
[1733409413685,0.48781405,103060.0,103030.0,0.58377301]
[1733409413931,0.48781305,103060.0,103030.0,0.38966401]
[1733409414151,0.388171,103050.0,103030.0,0.19555801]
[1733409414370,0.19408,103050.0,103030.0,0.19555801]
[1733409414588,0.388174,103050.0,103030.0,0.00145501]
[1733409415025,0.388174,103050.0,103030.0,0.19557101]
[1733409415253,0.582267,103050.0,103030.0,0.00145501]
[1733409415473,0.388173,103050.0,103030.0,0.00145501]
[1733409415685,0.388173,103050.0,103030.0,0.19557201]
[1733409416119,0.19408,103050.0,103030.0,0.19557201]
[1733409416377,0.388169,103050.0,103030.0,0.19557201]
[1733409416850,0.194099,103040.0,103030.0,0.00145501]
[1733409417575,0.29377505,103040.0,103030.0,0.00145501]
[1733409420367,0.44377505,103040.0,103030.0,0.00145501]
[1733409420603,0.54169427,103040.0,103030.0,0.00145501]
[1733409421071,0.64169427,103040.0,103030.0,0.00145501]
[1733409421297,0.80450487,103040.0,103030.0,0.00145501]
[1733409421528,0.90450487,103040.0,103030.0,0.00145501]
[1733409422241,0.243537,103020.0,103010.0,0.15]
[1733409422463,0.34321305,103020.0,103010.0,0.15]
[1733409424320,0.55862366,103040.0,103010.0,0.15]
[1733409424526,0.17041066,103040.0,103030.0,0.194118]
[1733409424753,0.15058462,103040.0,103010.0,0.60663265]
[1733409424981,0.194137,103020.0,103010.0,0.15]
[1733409425209,0.275429,103030.0,103010.0,0.15]
[1733409425440,0.15058462,103040.0,103020.0,0.388265]
[1733409425678,0.44435967,103040.0,103010.0,0.15]
[1733409425944,0.63847167,103040.0,103010.0,0.538285]
[1733409426166,0.63847167,103040.0,103030.0,0.194118]
[1733409426167,0.16987073,103040.0,103030.0,0.194118]
[1733409426387,0.15058462,103040.0,103020.0,0.582384]
[1733409426617,0.15058462,103040.0,103030.0,0.194118]
[1733409427074,0.15058462,103040.0,103030.0,0.3569286]
[1733409427527,0.15058462,103040.0,103030.0,0.194118]
[1733409428450,0.15058462,103040.0,103020.0,0.388249]
[1733409428682,0.15058462,103040.0,103030.0,0.194118]
[1733409429589,0.15058462,103040.0,103030.0,0.6075752]
[1733409429786,0.15058462,103040.0,103030.0,0.41248665]
[1733409430009,0.15058462,103040.0,103030.0,0.44379405]
[1733409430453,0.15058462,103040.0,103030.0,0.15]
[1733409430454,0.34468362,103040.0,103030.0,0.15]
[1733409431199,0.44435967,103040.0,103030.0,0.15]
[1733409431424,0.60717027,103040.0,103030.0,0.15]
[1733409431654,0.60717027,103040.0,103030.0,0.151]
[1733409432095,0.60717027,103040.0,103030.0,0.15]
[1733409433057,0.44435967,103040.0,103030.0,0.15]
[1733409433311,0.80508949,103040.0,103030.0,0.15]
[1733409433535,1.21770009,103040.0,103030.0,0.15]
[1733409433753,1.01770009,103040.0,103030.0,0.15]
[1733409433994,0.194137,103020.0,103010.0,0.15]
[1733409434213,0.45662365,103020.0,103010.0,0.15]
[1733409434698,0.55454287,103020.0,103010.0,0.15]
[1733409434922,0.65454287,103020.0,103010.0,0.15]
[1733409435146,0.83774287,103020.0,103010.0,0.15]
[1733409435383,0.294155,103010.0,103000.0,0.0008654]
[1733409435636,0.388439,102980.0,102960.0,0.0155237]
[1733409435853,0.29390705,102970.0,102960.0,0.0155237]
[1733409436105,0.194286,102950.0,102920.0,0.3894929]
[1733409436327,0.38857,102950.0,102920.0,0.48916895]
[1733409436540,0.194284,102950.0,102930.0,0.38861]
[1733409436788,0.194284,102950.0,102920.0,0.29485495]
[1733409436789,0.388563,102950.0,102920.0,0.29485495]
[1733409437032,0.388558,102950.0,102930.0,0.00017576]
[1733409437324,0.194279,102950.0,102930.0,0.00017576]
[1733409437547,0.29396305,102940.0,102930.0,0.00017576]
[1733409438709,0.45677365,102940.0,102930.0,0.00017576]
[1733409439659,0.55677365,102940.0,102930.0,0.00017576]
[1733409439905,0.57977365,102940.0,102930.0,0.00017576]
[1733409440136,0.31696305,102940.0,102930.0,0.00017576]
[1733409440584,0.47977365,102940.0,102930.0,0.00017576]
[1733409441596,0.31696305,102940.0,102930.0,0.00017576]
[1733409442060,0.47977365,102940.0,102930.0,0.00017576]
[1733409442783,0.023,102940.0,102930.0,0.00017576]
[1733409443019,0.12267605,102940.0,102930.0,0.00017576]
[1733409443291,0.3360473,102940.0,102930.0,0.00017576]
[1733409443537,0.4988579,102940.0,102930.0,0.00017576]
[1733409444412,0.6488579,102940.0,102930.0,0.00017576]
[1733409445511,0.19208425,102940.0,102930.0,0.00017576]
[1733409445727,0.38637125,102940.0,102930.0,0.00017576]
[1733409445945,0.367287,102940.0,102930.0,0.00017576]
[1733409446175,0.173,102940.0,102930.0,0.00017576]
[1733409446392,0.173,102940.0,102930.0,0.00104556]
[1733409447071,0.173,102940.0,102930.0,0.19535156]
[1733409447321,0.173,102940.0,102930.0,0.45880972]
[1733409447550,0.173,102940.0,102930.0,0.50373821]
[1733409448205,0.173,102940.0,102930.0,0.5923004]
[1733409448879,0.173,102940.0,102930.0,0.38316247]
[1733409448896,0.173,102940.0,102930.0,0.57746847]
[1733409449142,0.0017396,102960.0,102950.0,0.194269]
[1733409449382,0.194195,102990.0,102950.0,0.37501999]
[1733409449611,0.194195,102990.0,102960.0,0.194238]
[1733409449612,0.48004301,102990.0,102960.0,0.194238]
[1733409449850,0.48005201,102990.0,102960.0,0.194238]
[1733409450105,0.48812505,102980.0,102950.0,0.217257]
[1733409450320,0.194233,102970.0,102950.0,0.217257]
[1733409450536,0.194233,102970.0,102950.0,0.023]
[1733409450752,0.194231,102970.0,102950.0,0.023]
[1733409450986,0.388474,102970.0,102950.0,0.023]
[1733409451221,0.582722,102970.0,102950.0,0.023]
[1733409451463,0.19425,102960.0,102950.0,0.023]
[1733409451689,0.582718,102970.0,102950.0,0.023]
[1733409451904,0.582719,102970.0,102940.0,0.25172455]
[1733409452383,0.582719,102970.0,102940.0,0.44600255]
[1733409452608,0.19427,102950.0,102930.0,0.023]
[1733409453064,0.48819605,102960.0,102930.0,0.217305]
[1733409453305,0.19427,102950.0,102930.0,0.023]
[1733409453525,0.19427,102950.0,102930.0,0.217305]
[1733409453769,0.38855,102950.0,102920.0,0.20432343]
[1733409454001,0.19429,102940.0,102920.0,0.30417556]
[1733409454209,0.19429,102940.0,102920.0,0.20449951]
[1733409454430,0.38858,102940.0,102920.0,0.00017608]
[1733409454645,0.19429,102940.0,102920.0,0.19449908]
[1733409455131,0.388589,102940.0,102920.0,0.00017608]
[1733409455364,0.48823805,102950.0,102920.0,0.38881708]
[1733409455580,0.194306,102930.0,102920.0,0.00017608]
[1733409455806,0.29398205,102930.0,102920.0,0.00017608]
[1733409458026,0.29398205,102930.0,102920.0,0.00104588]
[1733409461053,1.3058878,102960.0,102920.0,0.25241867]
[1733409461054,0.0017396,102960.0,102920.0,0.25241867]
[1733409461289,0.0017396,102960.0,102950.0,0.194269]
[1733409462203,0.0017396,102960.0,102940.0,0.388549]
[1733409462416,0.0017396,102960.0,102950.0,0.62868915]
[1733409462672,0.0776,103020.0,103000.0,0.194161]
[1733409462914,0.29382305,103020.0,103000.0,0.194172]
[1733409463129,0.48797005,103020.0,102990.0,0.388368]
[1733409463367,0.388316,103010.0,102980.0,0.388405]
[1733409463585,0.48799205,103010.0,102980.0,0.194202]
[1733409463801,0.48799205,103010.0,102980.0,0.388403]
[1733409464021,0.48857642,103010.0,102980.0,0.582604]
[1733409464468,0.29441642,103010.0,102990.0,0.194191]
[1733409464713,0.48858242,103010.0,102980.0,0.388396]
[1733409464941,0.10026042,103010.0,102970.0,0.194218]
[1733409465173,0.388378,103000.0,102970.0,0.388449]
[1733409465400,0.10026042,103010.0,102950.0,0.68433486]
[1733409465401,0.00058437,103010.0,102990.0,0.25137279]
[1733409465626,0.00058437,103010.0,103000.0,0.194174]
[1733409466766,0.00058437,103010.0,102990.0,0.388356]
[1733409466980,0.19474437,103010.0,102990.0,0.388356]
[1733409467210,0.00058437,103010.0,102990.0,0.388356]
[1733409467435,0.00058437,103010.0,102990.0,0.582539]
[1733409467855,0.00058437,103010.0,102990.0,0.388356]
[1733409468327,0.00058437,103010.0,103000.0,0.44554679]
[1733409468547,0.00058437,103010.0,103000.0,0.194174]
[1733409468988,0.194174,103000.0,102960.0,0.19424]
[1733409469214,0.09967605,102990.0,102960.0,0.194248]
[1733409469489,0.194215,102980.0,102950.0,0.194251]
[1733409469710,0.48811405,102980.0,102950.0,0.582763]
[1733409469919,0.48811405,102980.0,102950.0,0.388504]
[1733409470139,0.48811405,102980.0,102950.0,0.582762]
[1733409470356,0.29388805,102980.0,102960.0,0.194249]
[1733409470566,0.09967605,102980.0,102960.0,0.388489]
[1733409471049,0.29388805,102980.0,102960.0,0.388489]
[1733409471271,0.09967605,102980.0,102960.0,0.388489]
[1733409471489,0.09967605,102980.0,102960.0,0.38848]
[1733409471912,0.29388805,102980.0,102960.0,0.19424]
[1733409472146,0.09967605,102980.0,102960.0,0.388477]
[1733409472364,0.70932437,103010.0,102950.0,0.25137279]
[1733409472589,0.68222505,103000.0,102970.0,0.388437]
[1733409472817,0.194194,102990.0,102970.0,0.388437]
[1733409473035,0.29387005,102990.0,102970.0,0.388437]
[1733409473253,1.14557959,103010.0,102960.0,0.25137279]
[1733409473492,0.09967605,103000.0,102980.0,0.194211]
[1733409473715,0.29386105,103000.0,102970.0,0.388439]
[1733409473936,0.29386105,103000.0,102980.0,0.194211]
[1733409474152,0.09967605,103000.0,102980.0,0.388419]
[1733409474374,0.65932437,103010.0,102990.0,0.19418]
[1733409474586,0.29616442,103010.0,102990.0,0.19418]
[1733409474938,0.00232437,103010.0,102990.0,0.19418]
[1733409475173,0.29386605,103000.0,102980.0,0.15]
[1733409475407,0.29386105,103000.0,102980.0,0.344211]
[1733409475662,0.09967605,103000.0,102980.0,0.538402]
[1733409475898,0.194193,102990.0,102980.0,0.15]
[1733409476362,0.29385205,103000.0,102980.0,0.344212]
[1733409476577,0.29385205,103000.0,102980.0,0.538413]
[1733409476578,0.09967605,103000.0,102980.0,0.538413]
[1733409476788,0.29385405,103000.0,102980.0,0.538413]
[1733409477221,0.48804005,103000.0,102980.0,0.15]
[1733409477482,0.194193,102990.0,102980.0,0.15]
[1733409477702,0.53707649,103000.0,102980.0,0.15]
[1733409477939,0.09967605,102990.0,102980.0,0.15]
[1733409478157,0.09967605,103000.0,102990.0,0.194193]
[1733409478379,0.00232437,103010.0,102990.0,0.194193]
[1733409478600,0.10200042,103010.0,103000.0,0.194174]
[1733409478859,0.10200042,103010.0,102980.0,0.194197]
[1733409479085,0.10200042,103010.0,102990.0,0.388358]
[1733409479322,0.00232437,103010.0,103000.0,0.194174]
[1733409479554,0.00232437,103010.0,102990.0,0.582536]
[1733409479784,0.19648037,103010.0,102990.0,0.388354]
[1733409480009,0.00232437,103010.0,102990.0,0.582538]
[1733409480241,0.00232437,103010.0,102990.0,0.388354]
[1733409480914,0.00232437,103010.0,102990.0,0.582537]
[1733409481137,0.29615642,103010.0,102970.0,0.194227]
[1733409481377,0.29615642,103010.0,102980.0,0.194194]
[1733409481607,0.10200042,103010.0,102990.0,0.388384]
[1733409481832,0.00232437,103010.0,102990.0,0.388384]
[1733409482280,0.00232437,103010.0,102990.0,0.388374]
[1733409482542,0.00232437,103010.0,102990.0,0.582553]
[1733409482756,0.00232437,103010.0,102990.0,0.582545]
[1733409482971,0.00232437,103010.0,103000.0,0.194174]
[1733409483636,0.10200042,103010.0,102990.0,0.582546]
[1733409483851,0.10200042,103010.0,103000.0,0.194174]
[1733409484302,0.10200042,103010.0,102990.0,0.194179]
[1733409484522,0.10200042,103010.0,102990.0,0.388362]
[1733409484970,0.00232437,103010.0,102990.0,0.388361]
[1733409485263,0.00232437,103010.0,103000.0,0.194174]
[1733409485934,0.10200042,103010.0,102990.0,0.38836]
[1733409486154,0.10200042,103010.0,102990.0,0.582543]
[1733409486379,0.10200042,103010.0,103000.0,0.194174]
[1733409486611,0.10200042,103010.0,102990.0,0.388361]
[1733409487085,0.10200042,103010.0,102990.0,0.388363]
[1733409487326,0.00232437,103010.0,103000.0,0.194174]
[1733409490363,0.00232437,103010.0,103000.0,0.62066153]
[1733409490601,0.00232437,103010.0,103000.0,0.45677036]
[1733409491543,0.0017384,103040.0,103030.0,0.194118]
[1733409491785,0.0017384,103040.0,103030.0,0.45786086]
[1733409492052,0.0017382,103050.0,103030.0,1.10803075]
[1733409492276,0.0017382,103050.0,103040.0,0.62058592]
[1733409492499,0.001738,103060.0,103050.0,0.16292031]
[1733409492734,0.001738,103060.0,103050.0,0.5347465]
[1733409492928,0.001738,103060.0,103050.0,0.53377636]
[1733409494575,0.0017376,103070.0,103060.0,0.16292031]
[1733409494839,0.0017376,103070.0,103060.0,0.4576275]
[1733409495079,0.0017372,103120.0,103110.0,0.193967]
[1733409495313,0.24231887,103120.0,103090.0,0.193995]
[1733409495538,0.04661967,103110.0,103090.0,0.387986]
[1733409495755,0.14629572,103110.0,103100.0,0.193986]
[1733409495971,0.14629572,103110.0,103090.0,0.58198]
[1733409496194,0.14629572,103110.0,103100.0,0.193986]
[1733409496413,0.14647119,103110.0,103100.0,0.193986]
[1733409496644,0.14647119,103110.0,103080.0,0.35693731]